[Event "Budapest IM-A ONE WEEK Feb 2024"]
[Site "Budapest"]
[Date "2024.02.28"]
[Round "5.4"]
[White "Fodor, Balazs"]
[Black "Ulasevich, Sergei"]
[Result "1/2-1/2"]
[ECO "E73"]
[WhiteElo "2215"]
[BlackElo "2261"]
[Annotator "TA"]
[PlyCount "56"]
[EventDate "2024.02.25"]
[EventType "tourn"]
[EventCountry "HUN"]
[SourceTitle "playchess.com"]
[Source "ChessBase"]
[SourceQuality "1"]
[TimeControl "5400+30"]

{[%evp 12,56,52,55,109,102,116,117,140,137,135,141,138,84,79,0,51,0,83,-33,-27,-25,-14,-23,-20,-14,0,0,0,0,0,0,15,-71,-74,-83,-69,-72,0,0,0,0,0,0,0,0,0]} 1. d4 {[%emt 0:01:25]} Nf6 {[%emt 0:00:06]} 2. c4 {[%emt 0:00:09]} g6 {[%emt 0:01:53]} 3. Nc3 {[%emt 0:00:09]} Bg7 {[%emt 0:00:05]} 4. e4 {[%emt 0:00:11]} d6 {[%emt 0:00:04]} 5. Be2 {[%emt 0:00:09]} O-O {[%emt 0:00:09]} 6. Be3 {[%emt 0:00:06]} e5 {[%emt 0:01:32]} 7. d5 {[%emt 0:00:08]} c5 {[%emt 0:02:54]} (7... Na6 $14) 8. g4 $16 {[%emt 0:01:47]} Ne8 {[%emt 0:03:57]} 9. h4 {[%emt 0:01:48] White is more active.} f5 {[%emt 0:01:39] White is better.} 10. gxf5 {[%emt 0:00:20]} gxf5 {[%emt 0:00:04]} 11. exf5 {[%emt 0:02:54]} Bxf5 {[%emt 0:00:54]} 12. h5 {[%emt 0:02:53]} (12. Bg4 $142) 12... e4 {[%emt 0:07:55]} 13. Bg4 {[%emt 0:03:16]} (13. Qd2 $16) 13... Qd7 {[%emt 0:03:08]} ({Black should play} 13... Qc8 $11 14. Bxf5 Bxc3+ 15. bxc3 Qxf5) 14. Bxf5 $1 $14 {[%emt 0:02:38]} Qxf5 {[%emt 0:00:09]} (14... Bxc3+ $11 {remains equal.} 15. bxc3 Qxf5) 15. h6 {[%emt 0:13:58]} (15. Nge2 $16) 15... Bxc3+ $15 {[%emt 0:03:56]} 16. bxc3 {[%emt 0:00:21]} Nd7 {[%emt 0:00:04] White must now prevent ...Nef6.} 17. Rh5 $1 {[%emt 0:07:51]} Qf7 $36 {[%emt 0:03:25][%mdl 2048] White is under pressure.} 18. Nh3 {[%emt 0:10:12]} Ne5 {[%emt 0:10:28] Repels Qg4+} 19. Rxe5 {[%emt 0:00:53]} dxe5 {[%emt 0:00:02]} 20. Qg4+ {[%emt 0:06:30]} Kh8 {[%emt 0:02:53]} 21. O-O-O {[%emt 0:05:08]} ({But not} 21. Bxc5 Qf5 22. Qh4 Rg8 $17) 21... b6 {[%emt 0:09:41]} 22. Qg3 {[%emt 0:07:43]} ({Reject} 22. Qxe4 Qf5 23. Qh4 Rf6) (22. Ng5 $11 Qg6 23. Qd7 (23. Qxe4 Nd6 $11)) 22... Nd6 $17 {[%emt 0:19:43]} 23. Qxe5+ {[%emt 0:07:22]} Qf6 {[%emt 0:00:07]} 24. Bf4 {[%emt 0:04:00]} Rae8 {[%emt 0:03:13]} (24... Nxc4 $17 25. Qxf6+ Rxf6) 25. Qxd6 $11 {[%emt 0:01:45] The position is equal.} Qxc3+ {[%emt 0:00:08]} 26. Kb1 {[%emt 0:00:18][%cal Of4c1] [#] aiming for Bc1!} Qb4+ {[%emt 0:00:08]} 27. Ka1 {[%emt 0:05:03] White threatens Be5+ and mate.} Qc3+ {[%emt 0:00:18]} 28. Kb1 {[%emt 0:00:06][%cal Of4c1] Bc1! is the strong threat.} Qb4+ {[%emt 0:00:04] Weighted Error Value: White=0.20 (precise) /Black=0.18 (very precise) .  Mistake:       	White=4     	Black=3      OK:         	White=8     	Black=4      Best:        	---       	Black=5      Strong:       	White=2     	---} 1/2-1/2

[Event "Budapest IM-A ONE WEEK Feb 2024"]
[Site "Budapest"]
[Date "2024.02.29"]
[Round "6.1"]
[White "Meessen, Rudolf"]
[Black "Szeberenyi, Adam"]
[Result "1/2-1/2"]
[ECO "D00"]
[WhiteElo "2169"]
[BlackElo "2255"]
[Annotator "TA"]
[PlyCount "40"]
[EventDate "2024.02.25"]
[EventType "tourn"]
[EventCountry "HUN"]
[SourceTitle "playchess.com"]
[Source "ChessBase"]
[SourceQuality "1"]
[TimeControl "5400+30"]

{[%evp 9,40,-18,-16,-22,-25,-43,-31,-40,-27,-29,-26,-39,-26,-28,0,-4,0,0,0,-37,-5,-17,-2,-68,-67,-78,-81,-75,-52,-58,-41,-44,-38]} 1. d4 {[%emt 0:00:08]} d5 {[%emt 0:00:25]} 2. Nc3 {[%emt 0:00:09]} Nf6 {[%emt 0:00:10]} 3. Bf4 {[%emt 0:00:05]} e6 {[%emt 0:00:09]} 4. e3 {[%emt 0:00:53]} Bb4 {[%emt 0:00:18]} 5. Nge2 {[%emt 0:00:04]} O-O {[%emt 0:00:31]} 6. a3 {[%emt 0:00:04]} Be7 {[%emt 0:00:23]} 7. Ng3 {[%emt 0:01:24]} c5 {[%emt 0:01:53]} 8. dxc5 {[%emt 0:00:21]} Bxc5 {[%emt 0:03:17]} 9. Bd3 {[%emt 0:00:04]} Nc6 {[%emt 0:05:05]} 10. O-O {[%emt 0:00:06]} Be7 {[%emt 0:05:42]} 11. h3 {[%emt 0:13:09]} e5 {[%emt 0:09:54]} 12. Bg5 {[%emt 0:00:08]} e4 {[%emt 0:01:11]} 13. Be2 {[%emt 0:02:11]} Be6 {[%emt 0:00:13]} 14. Nb5 {[%emt 0:04:06][%cal Oc2c4]} h6 {[%emt 0:02:08]} 15. Bxf6 {[%emt 0:01:57]} Bxf6 {[%emt 0:00:04]} 16. c3 {[%emt 0:00:47]} (16. c4 $1 $11) 16... Be5 $15 {[%emt 0:01:01]} 17. Nd4 {[%emt 0:08:49]} Nxd4 {[%emt 0:02:35]} 18. cxd4 {[%emt 0:01:14]} Bxg3 {[%emt 0:02:00]} 19. fxg3 {[%emt 0:00:06]} Qg5 {[%emt 0:00:07]} 20. Kf2 {[%emt 0:04:29]} Rad8 {[%emt 0:22:48] Weighted Error Value: White=0.14 (very precise) /Black=0.08 (flawless) .  Mistake:       	White=1     	---        Inaccurate:     	White=1     	Black=1      OK:         	White=6     	Black=4      Best:        	---       	Black=1} 1/2-1/2

[Event "Budapest IM-A ONE WEEK Feb 2024"]
[Site "Budapest"]
[Date "2024.02.29"]
[Round "6.2"]
[White "Ulasevich, Sergei"]
[Black "Jakab, Attila"]
[Result "0-1"]
[ECO "B22"]
[WhiteElo "2261"]
[BlackElo "2278"]
[Annotator "TA"]
[PlyCount "72"]
[EventDate "2024.02.25"]
[EventType "tourn"]
[EventCountry "HUN"]
[SourceTitle "playchess.com"]
[Source "ChessBase"]
[SourceQuality "1"]
[TimeControl "5400+30"]

{[%evp 9,72,30,37,24,24,22,28,29,56,29,36,30,53,46,77,77,197,220,242,228,250,234,213,187,201,0,0,0,0,-196,-215,-260,-223,-251,-259,-219,-55,-1255,-1204,-1271,-1264,-1383,-1381,-6100,-2956,-3448,-3448,-1960,-1743,-1720,-1336,-1310,-810,-772,-520,-29978,-6326,-29994,-29993,-29995,-29996,-29996,-29997,-29997,-29998]} 1. e4 {[%emt 0:00:04]} c5 {[%emt 0:16:11]} 2. c3 {[%emt 0:00:15]} g6 {[%emt 0:00:12]} 3. d4 {[%emt 0:00:12]} cxd4 {[%emt 0:00:02]} 4. cxd4 {[%emt 0:00:09]} d5 {[%emt 0:00:03]} 5. e5 {[%emt 0:00:08]} Nc6 {[%emt 0:00:03]} 6. Bb5 {[%emt 0:00:17]} Bd7 {[%emt 0:00:08][%cal Oc6e5]} 7. Nc3 {[%emt 0:01:56][%cal Oh2h4]} e6 {[%emt 0:02:44]} 8. Nf3 {[%emt 0:02:15] White has an edge.} Bg7 {[%emt 0:04:31]} 9. Bf4 {[%emt 0:04:03]} Nge7 {[%emt 0:00:09]} 10. Qd2 {[%emt 0:00:54]} O-O {[%emt 0:00:13]} 11. h4 {[%emt 0:04:42]} Qb6 {[%emt 0:07:02]} 12. h5 {[%emt 0:04:37]} f6 {[%emt 0:11:50]} (12... Be8 $16 {was necessary.}) 13. hxg6 $1 $18 Nxg6 {[%emt 0:00:44]} 14. Bh6 {[%emt 0:13:53] Threatens to win with Bxg7.} Bxh6 {[%emt 0:06:19]} (14... Ncxe5 $2 15. dxe5 (15. Bxg7 Nxf3+ 16. gxf3 Rf7 $18) 15... Bxh6 16. Qxh6 $18) 15. Qxh6 {[%emt 0:00:05]} (15. Rxh6 fxe5 16. Bxc6 bxc6 $14) 15... Rf7 {[%emt 0:00:02]} 16. Bd3 {[%emt 0:11:41]} (16. Bxc6 Qxb2 17. Rc1 Bxc6 $14) 16... Qxb2 {[%emt 0:05:58] [#]} 17. Nd1 {[%emt 0:00:20]} (17. Rc1 f5 $11) (17. Bxg6 $1 $18 Qxc3+ 18. Ke2 Qb2+ 19. Ke3 Qc3+ 20. Ke2 Qb2+ 21. Ke3 Qc3+ 22. Kf4 fxe5+ (22... hxg6 23. Qh8#) 23. Kg5 Rxf3 (23... hxg6 24. Qh8#) (23... Rg7 24. Qxg7+ Kxg7 25. Rxh7+ Kg8 26. Rah1) 24. Qxh7+ Kf8 25. gxf3 Qxf3 26. dxe5 (26. Qxd7 Qf4+ 27. Kh5 Qf3+ 28. Kh6 Qf6 $18) 26... Nxe5 27. Qh8+ Ke7 28. Qxe5 (28. Qxa8 $2 Qg4+ 29. Kh6 Qxg6#) 28... Qg2+ 29. Kh6 (29. Qg3 Qxg3+ 30. fxg3 a5 $18)) 17... Qb4+ $1 $11 {[%emt 0:00:37]} (17... Qxa1 $2 18. Bxg6 $18) 18. Kf1 {[%emt 0:00:09]} f5 $1 {[%emt 0:03:32]} (18... Nxd4 $2 19. Nxd4 f5 (19... Qxd4 $2 20. Bxg6 Bb5+ 21. Kg1 $18) 20. Nf3 $18) 19. Ng5 $2 {[%emt 0:05:17]} (19. Rb1 $11 Qa3 20. Be2 (20. Rb3 Qxa2 21. Rb1 Qa3 $15)) 19... Rg7 $19 {[%emt 0:02:22]} 20. Rb1 {[%emt 0:19:33]} (20. Nxh7 $2 {too greedy.} Qxd4 21. Bxf5 exf5 $19 (21... Qxa1 $2 22. Nf6+ Kf7 23. Qxg7+ Kxg7 24. Rh7+ Kf8 25. Nxd7+ Ke8 26. Bxg6+ Kd8 27. Bh5 $19)) 20... Qd2 {[%emt 0:08:05]} 21. Be2 {[%emt 0:03:08][%cal Rg5h7]} Nxd4 {[%emt 0:04:26]} (21... Qxd4 22. Rxb7 Qxe5 23. Nxh7 $11) 22. Rb2 {[%emt 0:00:47] [#]} Qc1 {[%emt 0:01:44]} ({Black should try} 22... Qf4 $1 $19 {Strongly threatening ...Nxe2.} 23. Rxb7 Nf8 (23... Nxe5 $2 24. Nxh7 Qxh6 25. Rxh6 $19) (23... Qxe5 $2 24. Bd3 $19)) 23. Rxb7 $2 {[%emt 0:02:55][%mdl 8192] This move loses the game for White.} (23. Nxh7 $15 Qxh6 24. Nf6+ Kf8 25. Rxh6) 23... Nxe2 {[%emt 0:01:57]} 24. Kxe2 {[%emt 0:01:20]} Qc2+ {[%emt 0:01:16]} 25. Kf3 {[%emt 0:00:50]} Nxe5+ {[%emt 0:02:35]} 26. Kg3 {[%emt 0:00:16]} f4+ {[%emt 0:00:18]} 27. Kh4 {[%emt 0:00:34]} Qf5 {[%emt 0:00:23]} 28. f3 {[%emt 0:00:35] Inhibits Qg4+.} Kh8 {[%emt 0:01:59]} 29. Nf2 {[%emt 0:05:36]} Rag8 {[%emt 0:01:59]} 30. Nfh3 {[%emt 0:00:05]} Nf7 {[%emt 0:05:44]} 31. Nxf7+ {[%emt 0:02:35]} Rxf7 {[%emt 0:00:06]} 32. Rc1 {[%emt 0:12:14]} (32. Qxf4 $19 Qxf4+ 33. Nxf4 Rxf4+ 34. g4) 32... e5 {[%emt 0:01:13][%cal Og8g4] ( -> ...Rg4+!)} 33. Nf2 {[%emt 0:01:06]} Qf6+ {[%emt 0:01:49] Black mates.} 34. Kh5 {[%emt 0:01:35]} Qxh6+ {[%emt 0:00:23]} 35. Kxh6 {[%emt 0:00:01]} Rf6+ {[%emt 0:00:25]} (35... Rxg2 36. Ng4 Rxg4 (36... Rxa2 37. Rb8+) 37. fxg4 $11) 36. Kh5 {[%emt 0:00:04]} Be8+ {[%emt 0:00:03] Weighted Error Value: White=1.07/Black=0.87.  Loses game:     	White=2     	---        Missed win:     	White=1     	Black=1      Mistake:       	---       	Black=1      Inaccurate:     	White=2     	Black=2      OK:         	White=3     	Black=3      Best:        	White=2     	Black=3      Strong:       	White=1     	Black=2} 0-1

[Event "Budapest IM-A ONE WEEK Feb 2024"]
[Site "Budapest"]
[Date "2024.02.29"]
[Round "6.3"]
[White "Toth-Goczo, Melinda"]
[Black "Fodor, Balazs"]
[Result "1-0"]
[ECO "D35"]
[WhiteElo "2201"]
[BlackElo "2215"]
[Annotator "RC"]
[PlyCount "87"]
[EventDate "2024.02.25"]
[EventType "tourn"]
[EventCountry "HUN"]
[SourceTitle "playchess.com"]
[Source "ChessBase"]
[SourceQuality "1"]
[TimeControl "5400+30"]

1. d4 {[%emt 0:00:02]} Nf6 {[%emt 0:01:00]} 2. c4 {[%emt 0:00:32]} e6 {[%emt 0:00:08]} 3. Nc3 {[%emt 0:00:59]} d5 {[%emt 0:00:07]} 4. cxd5 {[%emt 0:01:54]} exd5 {[%emt 0:00:09]} 5. Bf4 {[%emt 0:00:04]} Bd6 {[%emt 0:00:57]} 6. Bg3 {[%emt 0:07:10]} O-O {[%emt 0:00:25]} 7. e3 {[%emt 0:03:23]} c6 {[%emt 0:01:44]} 8. Bd3 {[%emt 0:01:41]} Re8 {[%emt 0:02:34]} 9. Qc2 {[%emt 0:11:39]} h6 {[%emt 0:00:10]} 10. Nf3 {[%emt 0:09:29]} Bxg3 {[%emt 0:00:59]} 11. hxg3 {[%emt 0:00:04]} Nbd7 {[%emt 0:00:19]} 12. O-O {[%emt 0:07:22]} Qe7 {[%emt 0:03:13]} 13. Nd2 {[%emt 0:07:40]} Nf8 {[%emt 0:06:19]} 14. Rab1 {[%emt 0:06:31]} Ne6 {[%emt 0:04:59]} 15. b4 {[%emt 0:11:19]} a6 {[%emt 0:00:21]} 16. a4 {[%emt 0:02:29]} Ng4 {[%emt 0:10:07]} 17. Rfe1 {[%emt 0:07:12]} b5 {[%emt 0:06:22]} 18. Nf3 {[%emt 0:07:27]} Nf6 {[%emt 0:14:21]} 19. Ne5 {[%emt 0:06:09]} Bb7 {[%emt 0:00:21]} 20. f4 {[%emt 0:01:52]} a5 {[%emt 0:06:34]} 21. axb5 {[%emt 0:01:54]} cxb5 {[%emt 0:01:42]} 22. bxa5 {[%emt 0:00:43]} Rec8 {[%emt 0:01:11]} 23. Qb2 {[%emt 0:00:49]} Ne8 {[%emt 0:07:25]} 24. Nxb5 {[%emt 0:01:29]} Ba6 {[%emt 0:02:08]} 25. Rec1 {[%emt 0:00:11]} f6 {[%emt 0:01:47]} 26. Ng6 {[%emt 0:02:07]} Qd7 {[%emt 0:00:31]} 27. Qe2 {[%emt 0:00:15]} Rab8 {[%emt 0:00:44]} 28. Nc3 {[%emt 0:00:25]} Rxc3 {[%emt 0:05:00]} 29. Bxa6 {[%emt 0:00:03]} Qc7 {[%emt 0:01:15]} 30. Qd2 {[%emt 0:00:56]} Rxb1 {[%emt 0:02:03]} 31. Rxb1 {[%emt 0:00:03]} Rc2 {[%emt 0:00:51]} 32. Qe1 {[%emt 0:00:38]} Ra2 {[%emt 0:00:51]} 33. Bb7 {[%emt 0:00:49]} Rxa5 {[%emt 0:01:37]} 34. Ne7+ {[%emt 0:00:17]} Kh8 {[%emt 0:00:38]} 35. Bxd5 {[%emt 0:00:54]} Nf8 {[%emt 0:02:04]} 36. Rb7 {[%emt 0:00:13]} Qd8 {[%emt 0:00:19]} 37. Nc6 {[%emt 0:00:07]} Qxd5 {[%emt 0:00:20]} 38. Nxa5 {[%emt 0:00:10]} Nd6 {[%emt 0:00:44]} 39. Rb8 {[%emt 0:00:25]} Kg8 {[%emt 0:00:10]} 40. Qb4 {[%emt 0:00:14]} Kh7 {[%emt 0:03:14]} 41. Rxf8 {[%emt 0:00:44]} Nf5 {[%emt 0:01:25]} 42. Qb1 {[%emt 0:00:38]} h5 {[%emt 0:00:08]} 43. Nc4 {[%emt 0:00:50]} Kg6 {[%emt 0:01:48]} 44. Rc8 {[%emt 0:00:14]} 1-0

[Event "Budapest IM-A ONE WEEK Feb 2024"]
[Site "Budapest"]
[Date "2024.02.29"]
[Round "6.4"]
[White "Horvath, David"]
[Black "Foldes, Marton Gabor"]
[Result "1/2-1/2"]
[ECO "A16"]
[WhiteElo "2330"]
[BlackElo "2119"]
[Annotator "TA"]
[PlyCount "67"]
[EventDate "2024.02.25"]
[EventType "tourn"]
[EventCountry "HUN"]
[SourceTitle "playchess.com"]
[Source "ChessBase"]
[SourceQuality "1"]
[TimeControl "5400+30"]

{[%evp 12,67,52,34,47,43,52,31,70,52,68,47,57,52,53,45,73,53,59,52,56,45,56,43,53,27,59,27,35,30,36,0,8,0,17,19,8,0,0,0,0,0,0,0,0,0,0,-59,0,-27,-31,-31,-33,-31,-31,-32,-25,-95]} 1. c4 {[%emt 0:00:02]} Nf6 {[%emt 0:00:15]} 2. Nc3 {[%emt 0:00:04]} c5 {[%emt 0:01:10]} 3. Nf3 {[%emt 0:02:57]} e6 {[%emt 0:01:40]} 4. g3 {[%emt 0:04:01]} b6 {[%emt 0:00:17]} 5. Bg2 {[%emt 0:00:32]} Bb7 {[%emt 0:00:08]} 6. O-O {[%emt 0:01:19]} d6 {[%emt 0:04:15]} 7. d4 {[%emt 0:08:40]} cxd4 {[%emt 0:00:08]} 8. Qxd4 {[%emt 0:00:21]} Nc6 {[%emt 0:07:42][%cal Bb8c6,Bc6e7,Be7g6][%mdl 32]} 9. Qf4 {[%emt 0:04:34]} Ne7 {[%emt 0:05:38] Weiß steht etwas besser.} 10. Rd1 {[%emt 0:12:34]} Ng6 {[%emt 0:00:43]} 11. Qd4 {[%emt 0:02:00]} Be7 {[%emt 0:12:33]} 12. Nb5 {[%emt 0:19:34]} d5 {[%emt 0:03:06]} 13. cxd5 {[%emt 0:00:29]} exd5 {[%emt 0:03:39]} 14. b3 {[%emt 0:14:04] Weiß hat aktiveres Spiel. Die schwarzen Türme stehen passiv.} O-O {[%emt 0:05:04]} 15. Ba3 {[%emt 0:04:03] Pariert Bc5.} Bxa3 {[%emt 0:04:48]} 16. Nxa3 {[%emt 0:00:02]} Qe7 {[%emt 0:00:38][%csl LRa3,LRe2]} 17. Qb2 {[%emt 0:00:07]} Ne4 {[%emt 0:06:49]} 18. Nb5 {[%emt 0:03:35]} a6 {[%emt 0:01:06]} 19. Nbd4 {[%emt 0:00:08]} Qf6 {[%emt 0:00:41] Wehrt Nf5 ab} 20. Rac1 {[%emt 0:02:55]} Rac8 {[%emt 0:03:08]} 21. Bh3 {[%emt 0:04:14]} Rc5 {[%emt 0:00:23]} 22. e3 {[%emt 0:03:46]} Bc8 {[%emt 0:11:45]} 23. Bg2 {[%emt 0:00:08]} h5 {[%emt 0:02:03][%cal Bh7h5,Bh5h4][%mdl 32]} 24. Ne1 {[%emt 0:02:57]} (24. b4 {vereinfacht} Rc4 25. a4 Re8 26. Rxc4 dxc4 27. Qc2) 24... Ne5 {[%emt 0:00:56]} 25. b4 {[%emt 0:02:08]} Rxc1 {[%emt 0:08:23]} (25... Rc4 {vereinfacht} 26. Bxe4 dxe4 27. Rxc4 Nxc4 28. Qc2 Bg4) 26. Rxc1 {[%emt 0:00:04]} h4 {[%emt 0:02:38]} 27. Rc2 {[%emt 0:02:48]} Bd7 {[%emt 0:03:28] Lässt Nc6 nicht zu} 28. Qb3 {[%emt 0:03:16] Verhindert Ba4} (28. Ndf3 {vereinfacht} Nxf3+ 29. Bxf3 hxg3 30. hxg3 Qxb2 31. Rxb2 Rc8 32. Nc2) 28... Qd6 {[%emt 0:02:46]} 29. a3 {[%emt 0:01:10]} ({Vorzuziehen ist} 29. gxh4 $11 a5 30. a3) 29... b5 {[%emt 0:01:30]} (29... hxg3 $15 30. hxg3 Ng4) 30. Nef3 {[%emt 0:00:58]} hxg3 $1 {[%emt 0:03:45]} 31. hxg3 {[%emt 0:00:06]} Nc4 {[%emt 0:00:19]} 32. Ne2 {[%emt 0:01:10]} Bg4 {[%emt 0:00:39] Weiss muss nun ...Bxf3 beachten.} 33. Ned4 {[%emt 0:01:13]} Re8 {[%emt 0:01:09]} 34. Rc1 {[%emt 0:00:38] Gewichteter Fehlerwert: Weiß=0.12 (sehr präzise) /Schwarz=0.07 (makellos) .  Fehler:       	Weiß=2     	Schwarz=1     Ungenau:       	Weiß=4     	Schwarz=3     OK:         	Weiß=9     	Schwarz=9     Bester:       	---       	Schwarz=2     Stark:        	---       	Schwarz=1} (34. Qa2 $11 {hält das Gleichgewicht.}) 1/2-1/2

[Event "Budapest IM-A ONE WEEK Feb 2024"]
[Site "Budapest"]
[Date "2024.02.29"]
[Round "6.5"]
[White "Papp, Sarah"]
[Black "Dudognon, Thibault"]
[Result "1/2-1/2"]
[ECO "B90"]
[WhiteElo "2279"]
[BlackElo "2388"]
[Annotator "TA"]
[PlyCount "99"]
[EventDate "2024.02.25"]
[EventType "tourn"]
[EventCountry "HUN"]
[SourceTitle "playchess.com"]
[Source "ChessBase"]
[SourceQuality "1"]
[TimeControl "5400+30"]

{[%evp 14,99,33,17,27,20,32,7,14,0,0,0,0,0,0,-10,0,0,46,34,45,0,0,0,0,0,19,6,24,31,28,24,43,35,68,72,80,64,89,8,0,0,11,-4,9,0,0,-34,32,25,34,27,39,6,31,32,30,-168,55,66,62,40,31,38,50,0,0,0,0,0,0,0,0,0,6,6,13,18,15,2,2,2,2,2,2,2,2,2]} 1. e4 {[%emt 0:00:03]} c5 {[%emt 0:00:08]} 2. Nf3 {[%emt 0:00:05]} d6 {[%emt 0:00:07]} 3. d4 {[%emt 0:00:03]} cxd4 {[%emt 0:00:07]} 4. Nxd4 {[%emt 0:00:03]} Nf6 {[%emt 0:00:08]} 5. Nc3 {[%emt 0:00:04]} a6 {[%emt 0:00:04]} 6. h3 {[%emt 0:00:03]} e6 {[%emt 0:00:25]} 7. g4 {[%emt 0:00:07]} Nfd7 {[%emt 0:00:07] B81: Sicilian Scheveningen: Keres Attack.} 8. Bg2 {[%emt 0:02:25] 8.Bg2 has lost popularity.} Be7 {[%emt 0:00:26]} 9. Be3 {[%emt 0:01:07]} Nc6 {[%emt 0:00:09]} 10. O-O {[%emt 0:03:27]} O-O {[%emt 0:03:37]} 11. a4 {[%emt 0:04:35]} Nde5 {[%emt 0:03:35]} 12. Qe2 {[%emt 0:03:10] is the legacy move (12.b3).} Nxd4 {[%emt 0:04:50]} 13. Bxd4 {[%emt 0:00:09]} Ng6 {[%emt 0:00:03]} 14. Be3 {[%emt 0:02:39]} Nh4 $146 {[%emt 0:00:40]} ({Predecessor:} 14... e5 15. Qd2 Be6 16. a5 Rc8 17. Na4 h6 18. b3 Bg5 19. c4 Bf4 20. Nc3 h5 {½-½ Gazik,V (2418)-Levin,E (2514) St Petersburg NFD Cup final-A 2016 (7)}) 15. Bh1 {[%emt 0:05:36]} g5 {[%emt 0:02:32]} (15... Bd7 $11) 16. Qd2 $14 {[%emt 0:07:11]} Ng6 {[%emt 0:03:00]} 17. Rad1 {[%emt 0:02:16]} Bd7 {[%emt 0:02:18]} 18. b3 {[%emt 0:02:42]} b5 {[%emt 0:09:11]} 19. axb5 {[%emt 0:06:34]} axb5 {[%emt 0:00:06]} 20. Ne2 {[%emt 0:00:23]} Ra2 {[%emt 0:05:20]} 21. Ra1 {[%emt 0:01:45]} Rxa1 {[%emt 0:01:53]} 22. Rxa1 {[%emt 0:00:01]} Ne5 {[%emt 0:01:59]} 23. Nd4 {[%emt 0:07:39]} f6 {[%emt 0:07:45]} 24. Ra7 {[%emt 0:05:03]} Qe8 {[%emt 0:03:37]} 25. Bg2 {[%emt 0:03:44]} h5 {[%emt 0:06:06]} 26. Qe2 {[%emt 0:12:55]} ({White should play} 26. gxh5 $16 Qxh5 27. Nxb5) 26... hxg4 $1 $11 {[%emt 0:00:59]} 27. hxg4 {[%emt 0:00:01]} Rf7 {[%emt 0:03:30]} 28. Bf1 {[%emt 0:02:43]} Rh7 {[%emt 0:01:52]} 29. c3 {[%emt 0:02:19]} Bf8 {[%emt 0:02:15]} 30. f3 {[%emt 0:00:55]} Qg6 {[%emt 0:03:03]} (30... Qc8 $15) 31. Qg2 {[%emt 0:01:50]} (31. Nxb5 $2 Bxb5 32. Qxb5 Nxf3+ 33. Kf2 Ne5 (33... Qxe4 34. Rxh7 Ne5 35. Rh3 $18) 34. Rxh7 Nxg4+ (34... Kxh7 35. Qb7+ Kg8 36. Be2 $11) (34... Qxh7 35. Bd4 $19) 35. Kg1 Qxh7 $17) 31... Qe8 {[%emt 0:09:54]} 32. Qa2 {[%emt 0:02:25]} Qc8 {[%emt 0:01:06]} 33. Qa5 {[%emt 0:00:36]} (33. Bxb5 Qxc3 34. Qf2 Bxb5 35. Rxh7 Kxh7 $11) 33... Qe8 {[%emt 0:06:23]} 34. Ra8 {[%emt 0:01:33]} (34. Nxb5 $2 Nxf3+ 35. Kg2 Ne5 $19) 34... Qg6 $1 {[%emt 0:00:59]} 35. Qa2 $2 {[%emt 0:00:25] [#]} (35. Bxb5 $2 Qh6 36. Kf1 Qh1+ 37. Bg1 Rh2 $19 (37... Nxf3 38. Rxf8+ Kg7 39. Rg8+ Kf7 40. Rf8+ Kg7 41. Rg8+ Kf7 42. Rf8+ Kg6 43. Rg8+ Kf7 $11) (37... Nxf3 38. Rxf8+ Kg7 39. Rg8+ Kf7 40. Rf8+ Kg7 41. Rg8+ Kf7 42. Rf8+ Kg7 $11)) (35. Bg2 $11 {and White is okay.}) 35... Qh6 $2 {[%emt 0:04:35]} (35... Nxf3+ $1 $19 36. Nxf3 Qxe4 37. Rxf8+ (37. Kf2 $2 Bc6 $19) 37... Kxf8) 36. Qg2 $14 {[%emt 0:00:49]} (36. Bxb5 Qh1+ 37. Kf2 Rh2+ 38. Kg3 Rg2+ 39. Qxg2 Qh4#) 36... Ng6 {[%emt 0:02:13]} 37. Kf2 {[%emt 0:05:59]} (37. Bxb5 Bxb5 38. Nxb5 Nh4) (37. Nxb5 $2 {is the wrong capture.} Nh4 38. Qg3 Nxf3+ 39. Kf2 Bxb5 $19) 37... Nf4 {[%emt 0:01:14]} 38. Bxf4 {[%emt 0:02:59]} gxf4 {[%emt 0:00:01]} 39. Kg1 {[%emt 0:01:28]} ({But not} 39. Nxb5 Qh4+ 40. Kg1 Bxb5 41. Bxb5 Qe1+ 42. Qf1 Qd2 $11) (39. Ke1 $1 $14) 39... Qh4 $11 {[%emt 0:03:03]} 40. Nxb5 {[%emt 0:08:08]} Bxb5 {[%emt 0:03:06]} 41. Bxb5 {[%emt 0:00:01]} Qe1+ {[%emt 0:00:14]} 42. Qf1 $1 {[%emt 0:00:08]} Qxc3 {[%emt 0:00:52]} 43. Bc4 {[%emt 0:01:11]} Qd4+ {[%emt 0:03:44]} 44. Kg2 {[%emt 0:00:02]} d5 {[%emt 0:00:31]} 45. exd5 {[%emt 0:00:13]} exd5 {[%emt 0:00:37]} 46. Qd3 {[%emt 0:00:51]} Qb2+ {[%emt 0:00:57]} 47. Qe2 {[%emt 0:00:07]} Qxe2+ {[%emt 0:00:07]} 48. Bxe2 {[%emt 0:00:01]} Rb7 {[%emt 0:00:30]} 49. Rd8 {[%emt 0:00:53]} Rxb3 {[%emt 0:00:16]} 50. Rxd5 {[%emt 0:00:08]} 1/2-1/2